lending/lending_fUSD_20260222
["ID","MTS","AMOUNT","RATE_DAILY","PERIOD"]
[406356321,1771789852605,-311.604845,0.0003,2]
[406356322,1771789852615,-320.52096258,0.0003,2]
[406356323,1771789852630,-1824.63515708,0.0003,2]
[406356324,1771789852639,-163.65754243,0.0003,2]
[406356325,1771789852649,-160.0,0.0003,120]
[406356326,1771789852659,-1077.86299281,0.0003013,2]
[406356327,1771789852668,-13905.66835593,0.0003013,2]
[406356328,1771789852678,-636.53572096,0.0003013,2]
[406356329,1771789852688,-202.49787502,0.0003013,2]
[406356330,1771789852698,-7761.6147683,0.0003013,2]
[406356331,1771789852708,-507.65,0.00030137,2]
[406356332,1771789852719,-151.0,0.00030137,7]
[406356333,1771789852729,-2000.0,0.00030137,2]
[406356334,1771789852739,-1089.44238676,0.00030167,3]
[406356335,1771789852749,-473.73523002,0.00030167,3]
[406356336,1771789852759,-196.33,0.000302,30]
[406356337,1771789852769,-15596.54748013,0.000302,2]
[406356338,1771789852779,-247.848919,0.00030235,120]
[406356339,1771789852791,-198.115,0.00030314,2]
[406356340,1771789852801,-226.372,0.00030314,2]
[406356341,1771789852811,-232.533,0.00030314,2]
[406356342,1771789852823,-160.207,0.00030314,2]
[406356343,1771789852833,-250.0,0.00030314,2]
[406356344,1771789852844,-192.287,0.00030314,2]
[406356345,1771789852854,-165.003,0.00030314,2]
[406356346,1771789852866,-282.265,0.00030314,2]
[406356347,1771789852876,-213.485,0.00030314,2]
[406356348,1771789852885,-175.0,0.00030314,2]
[406356349,1771789852895,-234.74,0.00030314,2]
[406356350,1771789852905,-160.0,0.000305,120]
[406356351,1771789852915,-333.94416864,0.00030633,5]
[406356352,1771789852989,-516.45912901,0.00030633,5]
[406356353,1771789852999,-500.0,0.00030633,5]
[406356354,1771789853009,-500.0,0.00030633,5]
[406356355,1771789853019,-528.47828238,0.00030633,2]
[406356356,1771789853028,-162.52171303,0.00030633,5]
[406356357,1771789853038,-150.0,0.00030633,5]
[406356358,1771789853047,-2000.0,0.00030685,2]
[406356359,1771789853056,-1615.13247028,0.0003084,2]
[406356360,1771789853066,-209.79049163,0.00030892,2]
[406356361,1771789853075,-150.0,0.000309,4]
[406356362,1771789853084,-184.94141496,0.00030935,14]
[406356363,1771789853093,-168.85326758,0.00030941,2]
[406356364,1771789853103,-151.0,0.00030947,7]
[406356365,1771789853112,-78323.33825602,0.0003095,2]
[406356366,1771789853121,-500.0,0.00030999,8]
[406356367,1771789853131,-51762.63097971,0.00031,2]
[406356368,1771789853141,-160.0,0.00031,120]
[406356369,1771789853151,-992.0,0.00031023,30]
[406356370,1771789853160,-364.0,0.00031023,30]
[406356371,1771789853173,-155.60718026,0.00031032,2]
[406356372,1771789853183,-500.0,0.00031181,5]
[406356373,1771789853192,-557.34334026,0.00031181,5]
[406356374,1771789853203,-250.0,0.00031181,5]
[406356375,1771789853213,-2000.0,0.00031233,2]
[406356376,1771789853222,-606.94280945,0.00031259,2]
[406356377,1771789853232,-151.47,0.00031345,2]
[406356378,1771789853241,-150.0,0.0003147,2]
[406356379,1771789853251,-198.11340609,0.000315,2]
[406356380,1771789853261,-263.93,0.00031645,2]
[406356381,1771789853271,-266.05548305,0.00031729,5]
[406356382,1771789853280,-1000.0,0.00031733,7]
[406356383,1771789853289,-2000.0,0.00031781,2]
[406356384,1771789853299,-200.0,0.000318,120]
[406356385,1771789853309,-618.0,0.00031888,2]
[406356386,1771789853320,-1210.0,0.00031888,2]
[406356387,1771789853331,-3459.754,0.00031888,2]
[406356388,1771789853340,-920.0,0.00031888,2]
[406356389,1771789853351,-2454.0,0.00031888,2]
[406356390,1771789853360,-151.0,0.00031897,7]
[406356391,1771789853370,-210.8,0.000319,6]
[406356392,1771789853380,-20868.05,0.000319,2]
[406356393,1771789853389,-630.0,0.00031913,2]
[406356394,1771789853399,-150.0,0.00031913,2]
[406356395,1771789853408,-150.0,0.00031913,2]
[406356396,1771789853417,-150.0,0.00031913,2]
[406356397,1771789853427,-272.0,0.00031913,2]
[406356398,1771789853436,-654.0,0.00031913,2]
[406356399,1771789853446,-150.0,0.00031913,2]
[406356400,1771789853455,-150.0,0.00031913,2]
[406356401,1771789853464,-211.0,0.00031913,2]
[406356402,1771789853473,-1000.0,0.00032007,7]
[406356403,1771789853482,-677.0,0.00032068,2]
[406356404,1771789853492,-150.0,0.00032068,2]
[406356405,1771789853501,-227.0,0.00032068,2]
[406356406,1771789853511,-18962.162275,0.00032074,30]
[406356407,1771789853520,-238.8860556,0.00032188,14]
[406356408,1771789853530,-151.35,0.00032256,30]
[406356409,1771789853539,-1000.0,0.00032281,7]
[406356410,1771789853551,-20037.15594043,0.000323,2]
[406356411,1771789853560,-897.70606283,0.000323,2]
[406356412,1771789853569,-2023.95858652,0.00032329,2]
[406356413,1771789853578,-150.0,0.000325,120]
[406356414,1771789853587,-1000.0,0.00032555,7]
[406356415,1771789853597,-180.0,0.00032603,33]
[406356416,1771789853606,-2000.0,0.000327,2]
[406356417,1771789853616,-4849.86408347,0.000328,2]
[406356418,1771789853625,-1000.0,0.00032828,7]
[406356419,1771789853635,-1726.91534345,0.0003287,4]
[406356420,1771789853644,-507.65,0.00032877,2]
[406356421,1771789853654,-346.11,0.00032877,2]
[406356422,1771789853663,-500.0,0.00032877,2]
[406356423,1771789853673,-183.59,0.000329,14]
[406356424,1771789853682,-150.0,0.000329,7]
[406356425,1771789853691,-718.57,0.000329,2]
[406356426,1771789853701,-151.0,0.00032997,14]
[406356427,1771789853710,-26485.84696501,0.00033,2]
[406356428,1771789853719,-2558.0696063,0.00033,4]
[406356429,1771789853730,-154.20459671,0.00033,2]
[406356430,1771789853740,-51506.7170417,0.00033,2]
[406356431,1771789853750,-561.209936,0.00033,14]
[406356432,1771789853759,-167.83720802,0.00033,2]
[406356433,1771789853769,-150.0,0.00033043,2]
[406356434,1771789853779,-407.568769,0.0003306,60]
[406356435,1771789853790,-1000.0,0.00033102,7]
[406356436,1771789853799,-150.0,0.00033314,2]
[406356437,1771789853809,-150.0,0.00033314,2]
[406356438,1771789853819,-204.0,0.0003337,7]
[406356439,1771789853830,-1000.0,0.00033376,7]
[406356440,1771789853839,-500.0,0.00033378,120]
[406356441,1771789853849,-266.47138329,0.00033441,14]
[406356442,1771789853859,-152.0,0.00033443,3]
[406356443,1771789853868,-1216.40616066,0.000335,2]
[406356444,1771789853878,-20868.05,0.000335,2]
[406356445,1771789853888,-171.3,0.00033641,30]
[406356446,1771789853898,-1000.0,0.0003365,7]
[406356447,1771789853908,-4758.62000772,0.00033921,2]
[406356448,1771789853918,-1000.0,0.00033924,7]
[406356449,1771789853927,-204.0,0.00034182,7]
[406356450,1771789853936,-1000.0,0.00034198,7]
[406356451,1771789853946,-1000.0,0.00034472,7]
[406356452,1771789853955,-1738.4668835,0.0003449,2]
[406356453,1771789853965,-718.57,0.000345,2]
[406356454,1771789853975,-211.0,0.00034513,7]
[406356455,1771789853984,-209.0,0.00034545,7]
[406356456,1771789853994,-158.0,0.00034545,7]
[406356457,1771789854004,-292.83069624,0.00034695,14]
[406356458,1771789854014,-239.0,0.00034696,7]
[406356459,1771789854023,-150.0,0.00034696,2]
[406356460,1771789854033,-1000.0,0.00034746,7]
[406356461,1771789854042,-1500.0,0.00034795,2]
[406356462,1771789854052,-176.53,0.0003482,13]
[406356463,1771789854061,-176.52,0.0003482,13]
[406356464,1771789854071,-297.211,0.00034888,2]
[406356465,1771789854080,-1208.0,0.00034888,2]
[406356466,1771789854089,-920.0,0.00034888,2]
[406356467,1771789854099,-2285.608,0.00034888,2]
[406356468,1771789854109,-151.36319148,0.00034902,2]
[406356469,1771789854119,-1925.28348306,0.00035,2]
[406356470,1771789854129,-803.08787113,0.00035,2]
[406356471,1771789854138,-173.78509278,0.00035,7]
[406356472,1771789854148,-1000.0,0.0003502,7]
[406356473,1771789854158,-1000.0,0.00035294,7]
[406356474,1771789854169,-180.0,0.00035316,43]
[406356475,1771789854179,-1000.0,0.00035351,2]
[406356476,1771789854188,-1000.0,0.00035351,2]
[406356477,1771789854197,-1000.0,0.00035351,2]
[406356478,1771789854207,-1000.0,0.00035351,2]
[406356479,1771789854217,-1000.0,0.00035351,2]
[406356480,1771789854226,-176.53,0.00035368,13]
[406356481,1771789854236,-176.52,0.00035368,13]
[406356482,1771789854245,-1000.0,0.00035568,7]
[406356483,1771789854255,-233.95598063,0.00035589,120]
[406356484,1771789854264,-335.50295858,0.00035589,30]
[406356485,1771789854274,-23777.50109647,0.0003561,2]
[406356486,1771789854283,-200.34190714,0.00035616,7]
[406356487,1771789854292,-507.65,0.00035616,2]
[406356488,1771789854302,-151.0,0.00035616,31]
[406356489,1771789854311,-151.0,0.00035697,14]
[406356490,1771789854330,-718.57,0.000357,2]
[406356491,1771789854341,-20868.05,0.000357,2]
[406356492,1771789854351,-179.0,0.00035754,14]
[406356493,1771789854361,-606.94280945,0.00035779,2]
[406356494,1771789854371,-1000.0,0.00035842,14]
[406356495,1771789854381,-176.53,0.00035916,13]
[406356496,1771789854391,-176.52,0.00035916,13]
[406356497,1771789854400,-300.79979088,0.00035948,14]
[406356498,1771789854411,-151.0,0.00035997,14]
[406356499,1771789854420,-151.0,0.00035997,14]
[406356500,1771789854430,-151.0,0.00035997,14]
[406356501,1771789854439,-266.601362,0.00035997,14]
[406356502,1771789854449,-115987.99977263,0.00036,2]
[406356503,1771789854459,-467717.93114775,0.00036,10]
[406356504,1771789854469,-160.0,0.00036,10]
[406356505,1771789854478,-160.0,0.00036,7]
[406356506,1771789854488,-173.78509278,0.00036,10]
[406356507,1771789854497,-844.49,0.00036093,10]
[406356508,1771789854507,-1000.0,0.00036116,14]
[406356509,1771789854517,-4157.64,0.00036184,10]
[406356510,1771789854527,-251.31917633,0.00036233,5]
[406356511,1771789854537,-219.0,0.00036235,7]
[406356512,1771789854549,-150.0,0.00036314,2]
[406356513,1771789854559,-1000.0,0.0003639,14]
[406356514,1771789854570,-2000.0,0.000364,2]
[406356515,1771789854581,-1032.26,0.00036418,10]
[406356516,1771789854591,-150.0,0.0003643,2]
[406356517,1771789854602,-179.0,0.00036624,14]
[406356518,1771789854614,-1000.0,0.00036664,14]
[406356519,1771789854624,-670.75,0.00036763,10]
[406356520,1771789854635,-1617.2389744,0.000368,2]
[406356521,1771789854647,-1963.2496398,0.000368,2]
[406356522,1771789854658,-718.57,0.000368,2]
[406356523,1771789854668,-330.3753145,0.0003681,5]
[406356524,1771789854679,-14186.79877603,0.0003691,2]
[406356525,1771789854688,-184.0,0.00036979,14]
[406356526,1771789854698,-365.0,0.00037,2]
[406356527,1771789854707,-166.3728012,0.00037,2]
[406356528,1771789854716,-363.62397211,0.00037,3]
[406356529,1771789854726,-183.0,0.00037013,14]
[406356530,1771789854736,-10283.62882749,0.00037088,14]
[406356531,1771789854747,-295.88390448,0.00037099,7]
[406356532,1771789854758,-1729.42711831,0.00037099,7]
[406356533,1771789854768,-827.80294864,0.00037099,7]
[406356534,1771789854778,-147968.38909314,0.00037099,7]
[406356535,1771789854790,-155.74,0.000371,14]
[406356536,1771789854799,-160.0,0.000371,10]
[406356537,1771789854808,-173.78509278,0.000371,10]
[406356538,1771789854818,-209.0,0.00037174,14]
[406356539,1771789854828,-335.12819856,0.00037201,14]
[406356540,1771789854838,-176.52,0.00037286,13]
[406356541,1771789854848,-176.53,0.00037286,13]
[406356542,1771789854858,-20868.05,0.000373,2]
[406356543,1771789854869,-221.0,0.00037347,7]
[406356544,1771789854880,-500.0,0.00037491,120]
[406356545,1771789854891,-171.3,0.00037521,60]
[406356546,1771789854902,-151.35,0.00037525,30]
[406356547,1771789854911,-4351.10384043,0.0003759,2]
[406356548,1771789854921,-152.0,0.00037628,4]
[406356549,1771789854933,-151.0,0.00037808,31]
[406356550,1771789854943,-151.0,0.00037808,31]
[406356551,1771789854953,-151.0,0.00037808,31]
[406356552,1771789854964,-151.0,0.00037808,31]
[406356553,1771789854975,-151.0,0.00037808,31]
[406356554,1771789854985,-204.062059,0.00037808,31]
[406356555,1771789854996,-202.99830884,0.0003788,2]
[406356556,1771789855005,-160.0,0.00038,30]
[406356557,1771789855015,-173.78509278,0.00038,7]
[406356558,1771789855025,-10067.3,0.00038,60]
[406356559,1771789855035,-180.0,0.00038028,57]
[406356560,1771789855045,-1197.13811136,0.000381,33]
[406356561,1771789855054,-150.0,0.00038252,2]
[406356562,1771789855064,-151.0,0.00038356,120]
[406356563,1771789855074,-151.0,0.00038356,120]
[406356564,1771789855083,-152.76058,0.00038356,120]
[406356565,1771789855092,-346.77533688,0.00038454,14]
[406356566,1771789855103,-894.69,0.00038596,2]
[406356567,1771789855113,-155.74,0.000386,14]
[406356568,1771789855123,-17660.15652026,0.00038646,3]
[406356569,1771789855132,-1000.0,0.000387,2]
[406356570,1771789855142,-192.0,0.00038823,14]
[406356571,1771789855152,-7427.94141284,0.00038834,2]
[406356572,1771789855161,-155.74,0.000389,14]
[406356573,1771789855171,-1530.84387529,0.0003899,10]
[406356574,1771789855181,-30892.05949706,0.00039,2]
[406356575,1771789855190,-160.0,0.00039,3]
[406356576,1771789855199,-273.61801163,0.000395,30]
[406356577,1771789855209,-46052.48794098,0.000397,2]
[406356578,1771789855219,-369.45660624,0.00039707,14]
[406356579,1771789855229,-718.57,0.000398,30]
[406356580,1771789855239,-30000.0,0.0004,60]
[406356581,1771789855254,-30000.0,0.0004,60]
[406356582,1771789855264,-30000.0,0.0004,60]
[406356583,1771789855275,-30000.0,0.0004,60]
[406356584,1771789855286,-30000.0,0.0004,60]
[406356585,1771789855296,-30000.0,0.0004,60]
[406356586,1771789855306,-40193.70541044,0.0004,60]
[406356587,1771789855316,-5000.0,0.0004,3]
[406356588,1771789855326,-759.48850188,0.0004,2]
[406356589,1771789855336,-15885.11463606,0.0004,120]
[406356590,1771789855346,-6275.65649506,0.0004,120]
[406356591,1771789855356,-306.0,0.0004,7]
[406356592,1771789855366,-768.96712559,0.0004,2]
[406356593,1771789855376,-154.0,0.0004,120]
[406356594,1771789855386,-163.84152605,0.0004,120]
[406356595,1771789855396,-160.0,0.0004,120]
[406356596,1771789855406,-10000.0,0.0004,120]
[406356597,1771789855416,-10000.0,0.0004,120]
[406356598,1771789855426,-18268.32,0.0004,120]
[406356599,1771789855435,-9999.98,0.0004,120]
[406356600,1771789855445,-10000.0,0.0004,120]
[406356601,1771789855455,-7344.25,0.0004,120]
[406356602,1771789855465,-9999.99,0.0004,120]
[406356603,1771789855475,-173.78509278,0.0004,3]
[406356604,1771789855484,-10000.0,0.0004,120]
[406356605,1771789855494,-15000.0,0.0004,120]
[406356606,1771789855503,-15000.0,0.0004,120]
[406356607,1771789855512,-12500.0,0.0004,120]
[406356608,1771789855523,-10000.0,0.0004,120]
[406356609,1771789855533,-12500.0,0.0004,120]
[406356610,1771789855542,-9999.99,0.0004,120]
[406356611,1771789855552,-2771.67,0.0004,120]
[406356612,1771789855562,-5532.52,0.0004,120]
[406356613,1771789855572,-150.51,0.0004,2]
[406356614,1771789855582,-193.0,0.00040014,14]
[406356615,1771789855592,-2000.0,0.000401,2]
[406356616,1771789855602,-150.0,0.00040165,2]
[406356617,1771789855612,-12500.0,0.0004025,120]
[406356618,1771789855622,-12500.0,0.0004025,120]
[406356619,1771789855633,-606.94280945,0.000403,2]
[406356620,1771789855644,-15000.0,0.000403,120]
[406356621,1771789855654,-15000.0,0.000403,120]
[406356622,1771789855663,-12500.0,0.000405,120]
[406356623,1771789855673,-12500.0,0.000405,120]
[406356624,1771789855683,-15000.0,0.000406,120]
[406356625,1771789855692,-15000.0,0.000406,120]
[406356626,1771789855702,-12500.0,0.0004075,120]
[406356627,1771789855712,-12134.59,0.0004075,120]
[406356628,1771789855722,-150.0,0.00040786,7]
[406356629,1771789855731,-150.0,0.00040786,7]
[406356630,1771789855741,-224.69878396,0.00040786,7]
[406356631,1771789855751,-150.0,0.00040786,7]
[406356632,1771789855761,-152.33380612,0.00040786,7]
[406356633,1771789855773,-150.0,0.00040786,7]
[406356634,1771789855785,-150.0,0.00040786,7]
[406356635,1771789855795,-150.0,0.00040786,7]
[406356636,1771789855805,-150.0,0.00040786,7]
[406356637,1771789855815,-260.14821752,0.00040786,7]
[406356638,1771789855827,-150.0,0.00040786,7]
[406356639,1771789855837,-150.0,0.00040786,7]
[406356640,1771789855847,-150.0,0.00040786,7]
[406356641,1771789855858,-855.68345202,0.00040825,2]
[406356642,1771789855867,-306.05328416,0.00040825,2]
[406356643,1771789855877,-300.0,0.00040825,2]
[406356644,1771789855887,-884.4819891,0.00040825,2]
[406356645,1771789855897,-300.0,0.00040825,2]
[406356646,1771789855908,-1560.97026512,0.00040825,2]
[406356647,1771789855920,-307.27731077,0.00040825,2]
[406356648,1771789855932,-458.78505011,0.00040825,2]
[406356649,1771789855942,-300.0,0.00040825,2]
[406356650,1771789855954,-371.39458192,0.00040825,2]
[406356651,1771789855964,-300.0,0.00040825,2]
[406356652,1771789855976,-300.0,0.00040825,2]
[406356653,1771789855986,-516.07428127,0.00040825,2]
[406356654,1771789855996,-518.57454504,0.00040825,2]
[406356655,1771789856006,-306.23261478,0.00040825,2]
[406356656,1771789856016,-522.17806505,0.00040825,2]
[406356657,1771789856026,-300.0,0.00040825,2]
[406356658,1771789856036,-300.0,0.00040825,2]
[406356659,1771789856046,-300.0,0.00040825,2]
[406356660,1771789856055,-373.39114996,0.00040825,2]
[406356661,1771789856065,-300.0,0.00040825,2]
[406356662,1771789856076,-300.0,0.00040825,2]
[406356663,1771789856087,-1082.06179791,0.00040825,2]
[406356664,1771789856097,-300.0,0.00040825,2]
[406356665,1771789856107,-300.0,0.00040825,2]
[406356666,1771789856118,-855.68345202,0.00040825,2]
[406356667,1771789856129,-306.05328416,0.00040825,2]
[406356668,1771789856139,-300.0,0.00040825,2]
[406356669,1771789856150,-884.4819891,0.00040825,2]
[406356670,1771789856160,-1563.1197537,0.00040825,2]
[406356671,1771789856171,-307.27731077,0.00040825,2]
[406356672,1771789856181,-458.78505011,0.00040825,2]
[406356673,1771789856191,-300.0,0.00040825,2]
[406356674,1771789856202,-363.23234185,0.00040825,2]
[406356675,1771789856212,-371.39458192,0.00040825,2]
[406356676,1771789856222,-300.0,0.00040825,2]
[406356677,1771789856232,-300.0,0.00040825,2]
[406356678,1771789856243,-518.57454504,0.00040825,2]
[406356679,1771789856255,-306.23261478,0.00040825,2]
[406356680,1771789856265,-300.0,0.00040825,2]
[406356681,1771789856277,-300.0,0.00040825,2]
[406356682,1771789856287,-300.0,0.00040825,2]
[406356683,1771789856298,-300.0,0.00040825,2]
[406356684,1771789856308,-614.54850457,0.00040825,2]
[406356685,1771789856319,-1082.06179791,0.00040825,2]
[406356686,1771789856330,-300.0,0.00040825,2]
[406356687,1771789856341,-300.93550866,0.00040825,2]
[406356688,1771789856351,-855.68345202,0.00040825,2]
[406356689,1771789856361,-306.05328416,0.00040825,2]
[406356690,1771789856372,-300.0,0.00040825,2]
[406356691,1771789856382,-884.4819891,0.00040825,2]
[406356692,1771789856393,-307.27731077,0.00040825,2]
[406356693,1771789856404,-458.78505011,0.00040825,2]
[406356694,1771789856414,-300.0,0.00040825,2]
[406356695,1771789856424,-371.39458192,0.00040825,2]
[406356696,1771789856434,-300.0,0.00040825,2]
[406356697,1771789856445,-300.0,0.00040825,2]
[406356698,1771789856455,-518.57454504,0.00040825,2]
[406356699,1771789856466,-306.23261478,0.00040825,2]
[406356700,1771789856477,-300.0,0.00040825,2]
[406356701,1771789856489,-1082.06179791,0.00040825,2]
[406356702,1771789856638,-855.68345202,0.00040825,2]
[406356703,1771789856650,-306.05328416,0.00040825,2]
[406356704,1771789856660,-300.0,0.00040825,2]
[406356705,1771789856670,-884.4819891,0.00040825,2]
[406356706,1771789856679,-307.27731077,0.00040825,2]
[406356707,1771789856689,-458.78505011,0.00040825,2]
[406356708,1771789856699,-300.0,0.00040825,2]
[406356709,1771789856708,-300.0,0.00040825,2]
[406356710,1771789856719,-371.39458192,0.00040825,2]
[406356711,1771789856728,-300.0,0.00040825,2]
[406356712,1771789856739,-300.0,0.00040825,2]
[406356713,1771789856750,-300.0,0.00040825,2]
[406356714,1771789856760,-518.57454504,0.00040825,2]
[406356715,1771789856770,-306.23261478,0.00040825,2]
[406356716,1771789856781,-300.0,0.00040825,2]
[406356717,1771789856794,-1082.06179791,0.00040825,2]
[406356718,1771789856803,-855.68345202,0.00040825,2]
[406356719,1771789856813,-306.05328416,0.00040825,2]
[406356720,1771789856822,-300.0,0.00040825,2]
[406356721,1771789856834,-884.4819891,0.00040825,2]
[406356722,1771789856844,-307.27731077,0.00040825,2]
[406356723,1771789856853,-458.78505011,0.00040825,2]
[406356724,1771789856864,-300.0,0.00040825,2]
[406356725,1771789856874,-371.39458192,0.00040825,2]
[406356726,1771789856884,-300.0,0.00040825,2]
[406356727,1771789856896,-300.0,0.00040825,2]
[406356728,1771789856905,-518.57454504,0.00040825,2]
[406356729,1771789856915,-306.23261478,0.00040825,2]
[406356730,1771789856925,-300.0,0.00040825,2]
[406356731,1771789856936,-1082.06179791,0.00040825,2]
[406356732,1771789856945,-855.68345202,0.00040825,2]
[406356733,1771789856954,-306.05328416,0.00040825,2]
[406356734,1771789856963,-300.0,0.00040825,2]
[406356735,1771789856974,-884.4819891,0.00040825,2]
[406356736,1771789856984,-307.27731077,0.00040825,2]
[406356737,1771789856995,-458.78505011,0.00040825,2]
[406356738,1771789857005,-300.0,0.00040825,2]
[406356739,1771789857015,-371.39458192,0.00040825,2]
[406356740,1771789857025,-300.0,0.00040825,2]
[406356741,1771789857034,-300.0,0.00040825,2]
[406356742,1771789857044,-518.57454504,0.00040825,2]
[406356743,1771789857054,-306.23261478,0.00040825,2]
[406356744,1771789857064,-300.0,0.00040825,2]
[406356745,1771789857075,-1082.06179791,0.00040825,2]
[406356746,1771789857084,-855.68345202,0.00040825,2]
[406356747,1771789857095,-306.05328416,0.00040825,2]
[406356748,1771789857104,-300.0,0.00040825,2]
[406356749,1771789857114,-884.4819891,0.00040825,2]
[406356750,1771789857124,-1563.1197537,0.00040825,2]
[406356751,1771789857133,-307.27731077,0.00040825,2]
[406356752,1771789857143,-458.78505011,0.00040825,2]
[406356753,1771789857152,-364.56283747,0.00040825,2]
[406356754,1771789857162,-371.39458192,0.00040825,2]
[406356755,1771789857171,-300.0,0.00040825,2]
[406356756,1771789857181,-300.0,0.00040825,2]
[406356757,1771789857190,-518.57454504,0.00040825,2]
[406356758,1771789857199,-306.23261478,0.00040825,2]
[406356759,1771789857209,-302.04661259,0.00040825,2]
[406356760,1771789857218,-300.0,0.00040825,2]
[406356761,1771789857228,-1082.06179791,0.00040825,2]
[406356762,1771789857237,-300.0,0.00040825,2]
[406356763,1771789857247,-855.68345202,0.00040825,2]
[406356764,1771789857256,-306.05328416,0.00040825,2]
[406356765,1771789857266,-362.21066716,0.00040825,2]
[406356766,1771789857276,-884.4819891,0.00040825,2]
[406356767,1771789857285,-976.19022687,0.00040825,2]
[406356768,1771789857294,-307.27731077,0.00040825,2]
[406356769,1771789857303,-458.78505011,0.00040825,2]
[406356770,1771789857313,-371.39458192,0.00040825,2]
[406356771,1771789857322,-456.78002047,0.00040825,2]
[406356772,1771789857332,-300.0,0.00040825,2]
[406356773,1771789857341,-518.57454504,0.00040825,2]
[406356774,1771789857351,-306.23261478,0.00040825,2]
[406356775,1771789857360,-300.0,0.00040825,2]
[406356776,1771789857369,-1082.06179791,0.00040825,2]
[406356777,1771789857379,-300.0,0.00040825,2]
[406356778,1771789857388,-855.68345202,0.00040825,2]
[406356779,1771789857398,-306.05328416,0.00040825,2]
[406356780,1771789857407,-884.4819891,0.00040825,2]
[406356781,1771789857416,-307.27731077,0.00040825,2]
[406356782,1771789857425,-458.78505011,0.00040825,2]
[406356783,1771789857434,-371.39458192,0.00040825,2]
[406356784,1771789857443,-300.0,0.00040825,2]
[406356785,1771789857452,-518.57454504,0.00040825,2]
[406356786,1771789857461,-306.23261478,0.00040825,2]
[406356787,1771789857470,-300.0,0.00040825,2]
[406356788,1771789857479,-1082.06179791,0.00040825,2]
[406356789,1771789857488,-855.68345202,0.00040825,2]
[406356790,1771789857496,-306.05328416,0.00040825,2]
[406356791,1771789857506,-884.4819891,0.00040825,2]
[406356792,1771789857515,-307.27731077,0.00040825,2]
[406356793,1771789857524,-458.78505011,0.00040825,2]
[406356794,1771789857534,-371.39458192,0.00040825,2]
[406356795,1771789857543,-300.0,0.00040825,2]
[406356796,1771789857552,-518.57454504,0.00040825,2]
[406356797,1771789857561,-306.23261478,0.00040825,2]
[406356798,1771789857570,-300.0,0.00040825,2]
[406356799,1771789857579,-1082.06179791,0.00040825,2]
[406356800,1771789857588,-855.68345202,0.00040825,2]
[406356801,1771789857597,-306.05328416,0.00040825,2]
[406356802,1771789857607,-300.0,0.00040825,2]
[406356803,1771789857616,-884.4819891,0.00040825,2]
[406356804,1771789857625,-1562.04500941,0.00040825,2]
[406356805,1771789857635,-307.27731077,0.00040825,2]
[406356806,1771789857644,-458.78505011,0.00040825,2]
[406356807,1771789857654,-371.39458192,0.00040825,2]
[406356808,1771789857663,-300.0,0.00040825,2]
[406356809,1771789857673,-518.57454504,0.00040825,2]
[406356810,1771789857682,-306.23261478,0.00040825,2]
[406356811,1771789857691,-300.0,0.00040825,2]
[406356812,1771789857700,-300.0,0.00040825,2]
[406356813,1771789857709,-1082.06179791,0.00040825,2]
[406356814,1771789857718,-300.0,0.00040825,2]
[406356815,1771789857727,-855.68345202,0.00040825,2]
[406356816,1771789857736,-306.05328416,0.00040825,2]
[406356817,1771789857746,-884.4819891,0.00040825,2]
[406356818,1771789857755,-307.27731077,0.00040825,2]
[406356819,1771789857764,-458.78505011,0.00040825,2]
[406356820,1771789857773,-371.39458192,0.00040825,2]